fUSD/lending_fUSD_20241222
["ID","MTS","AMOUNT","RATE_DAILY","PERIOD"]
[346324908,1734892249211,-150.0,0.00019944,2]
[346324910,1734892249222,-150.0,0.00019945,2]
[346324913,1734892249232,-150.0,0.00019952,2]
[346324914,1734892249242,-150.0,0.00019958,2]
[346324916,1734892249251,-150.0,0.0001996,2]
[346324918,1734892249261,-150.0,0.00019961,2]
[346324920,1734892249271,-150.0,0.00019961,2]
[346324922,1734892249280,-1500.0,0.00019962,2]
[346324924,1734892249289,-150.0,0.00019963,2]
[346324926,1734892249299,-150.0,0.00019967,2]
[346324928,1734892249310,-150.0,0.00019967,2]
[346324930,1734892249319,-150.0,0.00019969,2]
[346324933,1734892249329,-500.0,0.00019973,2]
[346324934,1734892249339,-500.20297702,0.00019973,2]
[346324936,1734892249348,-1500.0,0.00019974,2]
[346324938,1734892249358,-150.0,0.00019975,2]
[346324940,1734892249368,-150.0,0.00019977,2]
[346324942,1734892249380,-150.0,0.00019977,2]
[346324944,1734892249391,-150.0,0.00019979,2]
[346324946,1734892249402,-150.0,0.00019979,2]
[346324949,1734892249415,-150.0,0.0001998,2]
[346324951,1734892249427,-150.0,0.00019981,2]
[346324953,1734892249437,-81070.73423546,0.00019984,2]
[346324955,1734892249447,-150.0,0.00019985,2]
[346324957,1734892249456,-150.0,0.00019985,2]
[346324958,1734892249465,-150.0,0.00019986,2]
[346324960,1734892249475,-150.0,0.00019987,2]
[346324962,1734892249484,-150.0,0.00019988,2]
[346324964,1734892249494,-150.0,0.00019994,2]
[346324966,1734892249503,-500.0,0.00019995,2]
[346324968,1734892249511,-2557.3375698,0.00019996,2]
[346324970,1734892249522,-2858.7202242,0.00019996,2]
[346324972,1734892249531,-398.9769259,0.00019996,2]
[346324974,1734892249540,-300.0,0.00019999,2]
[346324976,1734892249550,-1000.0,0.00019999,2]
[346324978,1734892249559,-1000.0,0.00019999,2]
[346324980,1734892249570,-1000.0,0.00019999,3]
[346324982,1734892249579,-1000.0,0.00019999,4]
[346324984,1734892249588,-4844.8520517,0.00019999,7]
[346324986,1734892249597,-552234.39144499,0.00019999,2]
[346324988,1734892249607,-113272.27556688,0.00019999,2]
[346324990,1734892249616,-26975.60843874,0.00019999,20]
[346324992,1734892249628,-6446.77811308,0.0002,2]
[346324994,1734892249638,-8111941.16187147,0.0002,2]
[346324996,1734892249650,-1954.79088936,0.0002,2]
[346324998,1734892249659,-2771.80477259,0.0002,7]
[346325000,1734892249668,-11698.9608648,0.0002,2]
[346325002,1734892249678,-470.67910585,0.0002,10]
[346325004,1734892249687,-8026.13592569,0.0002,2]
[346325006,1734892249696,-2052.05070564,0.0002,2]
[346325008,1734892249706,-40954.59294647,0.0002,2]
[346325010,1734892249715,-811.98693779,0.0002,2]
[346325012,1734892249725,-3392.6406025,0.0002,2]
[346325014,1734892249734,-2930.93,0.0002,2]
[346325016,1734892249744,-202.6,0.0002,2]
[346325017,1734892249753,-202.6,0.0002,2]
[346325019,1734892249763,-202.6,0.0002,2]
[346325021,1734892249772,-13130.6118413,0.0002,10]
[346325023,1734892249783,-1000.0,0.0002,2]
[346325025,1734892249792,-1000.0,0.0002,2]
[346325027,1734892249801,-1000.0,0.0002,2]
[346325029,1734892249811,-1000.0,0.0002,2]
[346325031,1734892249819,-1000.0,0.0002,2]
[346325033,1734892249829,-1000.0,0.0002,2]
[346325035,1734892249839,-1000.0,0.0002,2]
[346325037,1734892249848,-1000.0,0.0002,2]
[346325039,1734892249857,-1000.0,0.0002,2]
[346325041,1734892249867,-1000.0,0.0002,2]
[346325043,1734892249877,-1000.0,0.0002,2]
[346325045,1734892249886,-1000.0,0.0002,2]
[346325047,1734892249895,-1000.0,0.0002,2]
[346325049,1734892249904,-1000.0,0.0002,2]
[346325051,1734892249913,-1000.0,0.0002,2]
[346325053,1734892249922,-1000.0,0.0002,2]
[346325055,1734892249932,-1000.0,0.0002,2]
[346325057,1734892249941,-1000.0,0.0002,2]
[346325059,1734892249950,-1000.0,0.0002,2]
[346325061,1734892249960,-1000.0,0.0002,2]
[346325063,1734892249969,-1000.0,0.0002,2]
[346325065,1734892249978,-1000.0,0.0002,2]
[346325067,1734892249986,-1000.0,0.0002,2]
[346325069,1734892249995,-1000.0,0.0002,2]
[346325071,1734892250005,-1000.0,0.0002,2]
[346325073,1734892250014,-1000.0,0.0002,2]
[346325075,1734892250023,-1000.0,0.0002,2]
[346325077,1734892250032,-1000.0,0.0002,2]
[346325079,1734892250041,-1000.0,0.0002,2]
[346325081,1734892250050,-1000.0,0.0002,2]
[346325083,1734892250059,-1000.0,0.0002,2]
[346325085,1734892250068,-1000.0,0.0002,2]
[346325087,1734892250077,-1000.0,0.0002,2]
[346325089,1734892250086,-217.14106938,0.0002,2]
[346325091,1734892250095,-2000.0,0.0002,2]
[346325093,1734892250104,-1224.0,0.0002,7]
[346325094,1734892250113,-104737.0,0.0002,3]
[346325096,1734892250122,-4000.0,0.0002,2]
[346325098,1734892250131,-290.410702,0.0002,2]
[346325100,1734892250144,-1133.546251,0.0002,2]
[346325102,1734892250153,-500.0,0.0002,2]
[346325104,1734892250162,-3000.0,0.0002,2]
[346325106,1734892250171,-500.0,0.0002,2]
[346325108,1734892250183,-500.0,0.0002,2]
[346325110,1734892250192,-500.0,0.0002,2]
[346325112,1734892250201,-500.0,0.0002,2]
[346325114,1734892250210,-999.0,0.0002,7]
[346325116,1734892250220,-999.0,0.0002,7]
[346325118,1734892250229,-999.0,0.0002,7]
[346325120,1734892250238,-999.0,0.0002,7]
[346325122,1734892250247,-999.0,0.0002,7]
[346325124,1734892250256,-999.0,0.0002,7]
[346325126,1734892250265,-999.0,0.0002,7]
[346325128,1734892250274,-999.0,0.0002,7]
[346325130,1734892250283,-999.0,0.0002,7]
[346325132,1734892250293,-999.0,0.0002,7]
[346325134,1734892250302,-999.0,0.0002,7]
[346325136,1734892250311,-999.0,0.0002,7]
[346325138,1734892250320,-999.0,0.0002,7]
[346325139,1734892250330,-500.0,0.0002,2]
[346325141,1734892250339,-477.17673668,0.0002,7]
[346325143,1734892250349,-500.0,0.0002,2]
[346325145,1734892250358,-387.09,0.0002,2]
[346325147,1734892250367,-500.0,0.0002,2]
[346325150,1734892250377,-500.0,0.0002,2]
[346325152,1734892250387,-500.0,0.0002,2]
[346325154,1734892250396,-633.98487458,0.0002,2]
[346325155,1734892250405,-500.0,0.0002,2]
[346325157,1734892250414,-500.0,0.0002,2]
[346325159,1734892250424,-500.0,0.0002,2]
[346325162,1734892250434,-605.95,0.0002,2]
[346325163,1734892250443,-500.0,0.0002,2]
[346325165,1734892250453,-500.0,0.0002,2]
[346325168,1734892250463,-1049.13,0.0002,2]
[346325170,1734892250472,-500.0,0.0002,2]
[346325172,1734892250481,-500.0,0.0002,2]
[346325174,1734892250491,-500.0,0.0002,2]
[346325176,1734892250500,-500.0,0.0002,2]
[346325178,1734892250509,-500.0,0.0002,2]
[346325180,1734892250519,-500.0,0.0002,2]
[346325182,1734892250529,-500.0,0.0002,2]
[346325184,1734892250538,-500.0,0.0002,2]
[346325186,1734892250548,-500.0,0.0002,2]
[346325188,1734892250557,-547.88,0.0002,2]
[346325190,1734892250566,-500.0,0.0002,2]
[346325192,1734892250575,-542.11,0.0002,2]
[346325194,1734892250586,-500.0,0.0002,2]
[346325196,1734892250596,-500.0,0.0002,2]
[346325197,1734892250605,-221.87,0.0002,2]
[346325199,1734892250615,-500.0,0.0002,2]
[346325201,1734892250625,-500.0,0.0002,2]
[346325203,1734892250634,-500.0,0.0002,2]
[346325205,1734892250644,-500.0,0.0002,2]
[346325207,1734892250654,-500.0,0.0002,2]
[346325208,1734892250663,-500.0,0.0002,2]
[346325210,1734892250673,-376.337155,0.0002,2]
[346325212,1734892250682,-500.0,0.0002,2]
[346325214,1734892250692,-10021.03330535,0.0002,7]
[346325216,1734892250701,-500.0,0.0002,2]
[346325218,1734892250711,-500.0,0.0002,2]
[346325220,1734892250720,-513.55,0.0002,2]
[346325222,1734892250730,-500.0,0.0002,2]
[346325224,1734892250739,-6500.0,0.0002,2]
[346325226,1734892250749,-772.949698,0.0002,2]
[346325228,1734892250759,-273.26,0.0002,2]
[346325230,1734892250768,-297.45562122,0.0002,2]
[346325232,1734892250777,-27180.1709375,0.0002,60]
[346325234,1734892250786,-500.0,0.0002,2]
[346325236,1734892250795,-500.0,0.0002,2]
[346325238,1734892250805,-500.0,0.0002,2]
[346325240,1734892250814,-1208.79,0.0002,2]
[346325242,1734892250823,-317.01,0.0002,2]
[346325243,1734892250834,-3197.42,0.0002,2]
[346325245,1734892250843,-437.36,0.0002,2]
[346325247,1734892250853,-152.54903367,0.0002,2]
[346325249,1734892250863,-500.0,0.0002,2]
[346325252,1734892250872,-150.0,0.0002,2]
[346325253,1734892250882,-1719.03,0.0002,2]
[346325255,1734892250892,-17535.03,0.0002,2]
[346325257,1734892250902,-168.5351581,0.0002,2]
[346325259,1734892250911,-150.0,0.0002,2]
[346325261,1734892250921,-500.0,0.0002,2]
[346325263,1734892250931,-150.0,0.0002,2]
[346325265,1734892250940,-266.3357231,0.0002,2]
[346325267,1734892250950,-1681.71,0.0002,2]
[346325269,1734892250960,-500.0,0.0002,2]
[346325271,1734892250970,-639.32146749,0.0002,2]
[346325273,1734892250979,-939.7,0.0002,2]
[346325275,1734892250988,-500.0,0.0002,2]
[346325277,1734892250999,-500.0,0.0002,2]
[346325279,1734892251008,-500.0,0.0002,2]
[346325281,1734892251018,-500.0,0.0002,2]
[346325283,1734892251028,-1201.77,0.0002,2]
[346325285,1734892251037,-65344.39489571,0.0002,2]
[346325287,1734892251047,-500.0,0.0002,2]
[346325289,1734892251056,-500.0,0.0002,2]
[346325291,1734892251065,-500.0,0.0002,2]
[346325293,1734892251075,-221.48,0.0002,2]
[346325295,1734892251085,-500.0,0.0002,2]
[346325297,1734892251094,-500.0,0.0002,2]
[346325299,1734892251104,-500.0,0.0002,2]
[346325301,1734892251114,-1020.54,0.0002,2]
[346325303,1734892251123,-500.0,0.0002,2]
[346325305,1734892251135,-500.0,0.0002,2]
[346325307,1734892251146,-500.0,0.0002,2]
[346325309,1734892251155,-500.0,0.0002,2]
[346325311,1734892251164,-500.0,0.0002,2]
[346325313,1734892251175,-500.0,0.0002,2]
[346325314,1734892251184,-14025.74,0.0002,2]
[346325317,1734892251195,-1877.52,0.0002,2]
[346325318,1734892251204,-500.0,0.0002,2]
[346325320,1734892251214,-522.65,0.0002,2]
[346325322,1734892251226,-821.79,0.0002,2]
[346325324,1734892251236,-500.0,0.0002,2]
[346325327,1734892251246,-500.0,0.0002,2]
[346325328,1734892251255,-500.0,0.0002,2]
[346325330,1734892251265,-500.0,0.0002,2]
[346325332,1734892251274,-1389.03899863,0.0002,5]
[346325334,1734892251283,-500.0,0.0002,2]
[346325336,1734892251293,-575.9,0.0002,2]
[346325338,1734892251303,-500.0,0.0002,2]
[346325340,1734892251313,-6966.93,0.0002,2]
[346325342,1734892251322,-295.38932344,0.0002,2]
[346325344,1734892251331,-158.0,0.0002,2]
[346325346,1734892251342,-524.88,0.0002,2]
[346325348,1734892251352,-625.34,0.0002,2]
[346325350,1734892251362,-500.0,0.0002,2]
[346325352,1734892251371,-1574.18,0.0002,2]
[346325354,1734892251381,-1015.88,0.0002,2]
[346325356,1734892251390,-556.83,0.0002,2]
[346325358,1734892251399,-674.98,0.0002,2]
[346325360,1734892251409,-7500.0,0.0002,2]
[346325362,1734892251419,-3822.01839656,0.0002,2]
[346325364,1734892251428,-500.0,0.0002,2]
[346325366,1734892251438,-894.6,0.0002,2]
[346325368,1734892251448,-500.0,0.0002,2]
[346325370,1734892251459,-556.69,0.0002,2]
[346325372,1734892251469,-102976.38601718,0.0002,2]
[346325374,1734892251478,-500.0,0.0002,2]
[346325376,1734892251488,-1603.14,0.0002,2]
[346325378,1734892251497,-510.93,0.0002,2]
[346325380,1734892251506,-4166.58696057,0.0002,2]
[346325382,1734892251515,-91860.45633875,0.0002,4]
[346325384,1734892251525,-500.0,0.0002,2]
[346325386,1734892251534,-565.7,0.0002,2]
[346325388,1734892251544,-3950.0,0.0002,2]
[346325390,1734892251554,-1241.87,0.0002,2]
[346325392,1734892251563,-539.39,0.0002,2]
[346325394,1734892251573,-56963.13170792,0.0002,2]
[346325396,1734892251583,-500.0,0.0002,2]
[346325398,1734892251593,-1236.41145142,0.0002,2]
[346325400,1734892251604,-692.19,0.0002,2]
[346325402,1734892251614,-3262.03,0.0002,2]
[346325404,1734892251624,-646.9,0.0002,2]
[346325406,1734892251634,-500.0,0.0002,2]
[346325408,1734892251643,-500.0,0.0002,2]
[346325410,1734892251653,-56394651.64247639,0.0002,2]
[346325451,1734892252033,-500.0,0.00019178,2]
[346325453,1734892252043,-12.93677515,0.00019178,2]
[346325455,1734892252054,-487.06322485,0.00019178,2]
[346325457,1734892252063,-500.0,0.00019452,2]
[346325459,1734892252073,-500.0,0.00019452,2]
[346325461,1734892252083,-500.0,0.00019726,2]
[346325463,1734892252093,-2795.63250955,0.0002,2]
[346325469,1734892252143,-5165.84602746,0.0002,2]
[346325471,1734892252155,-10153.0,0.0002,2]
[346325473,1734892252166,-7025.61758418,0.0002,2]
[346325522,1734892252852,-477.24801,0.00019178,2]
[346325524,1734892252863,-22.75199,0.00019178,2]
[346325526,1734892252872,-459.40622,0.00019178,2]
[346325528,1734892252883,-40.59378,0.00019178,2]
[346325530,1734892252893,-500.0,0.00019178,2]
[346325532,1734892252902,-18.306221,0.00019178,2]
[346325536,1734892252925,-500.0,0.00019178,2]
[346325564,1734892253193,-1279.303779,0.00019178,2]
[346325566,1734892253202,-351.35294587,0.00019178,2]
[346325568,1734892253213,-148.64705413,0.00019178,2]
[346325570,1734892253225,-500.0,0.00019178,2]
[346325572,1734892253234,-1348.48105887,0.00019178,2]
[346325576,1734892253256,-828.14659001,0.00019178,2]
[346325683,1734892792869,161.84,0.00016658,30]
[346325807,1734893328976,412.52,0.00010137,2]
[346325808,1734893407588,150.0,0.00010137,2]
[346325809,1734893407763,150.0,0.00010137,2]
[346325810,1734893407937,87.48,0.00010137,2]
[346325811,1734893407957,62.52,0.00010137,2]
[346325812,1734893408121,150.0,0.00010137,2]
[346325813,1734893408314,150.0,0.00010137,2]
[346325814,1734893408498,150.0,0.00010137,2]
[346325815,1734893408675,150.0,0.00010137,2]
[346325816,1734893409092,137.48,0.00010137,2]
[346325817,1734893409113,12.52,0.00010137,2]
[346325818,1734893409292,150.0,0.00010137,2]
[346325819,1734893409486,150.0,0.00010137,2]
[346325820,1734893409691,150.0,0.00010137,2]
[346325821,1734893409870,150.0,0.00010137,2]
[346325822,1734893410068,150.0,0.00010137,2]
[346325823,1734893410261,37.48,0.00010137,2]
[346325824,1734893410282,112.52,0.00010137,2]
[346325825,1734893410450,150.0,0.00010137,2]
[346325826,1734893410651,150.0,0.00010137,2]
[346325827,1734893410990,150.0,0.00010137,2]
[346325828,1734893411161,150.0,0.00010137,2]
[346325829,1734893411345,87.48,0.00010137,2]
[346325830,1734893411366,62.52,0.00010137,2]
[346325831,1734893411525,150.0,0.00010137,2]
[346325832,1734893411698,150.0,0.00010137,2]
[346325833,1734893411921,291.40326273,0.00010137,2]
[346325838,1734893432206,-400.78,0.00013,2]
[346325839,1734893432218,-49.22,0.00013,2]
[346325840,1734893432227,-772.02910659,0.00013243,2]
[346325841,1734893432238,-508.65363097,0.00013243,2]
[346325842,1734893432247,-148.11669035,0.00013343,2]
[346325843,1734893432258,-836.48330965,0.00013343,2]
[346325844,1734893432267,-156.21,0.00013699,2]
[346325845,1734893432277,-907.30669035,0.00014822,2]
[346325846,1734893432292,-616.5,0.00014822,2]
[346325847,1734893432304,-915.80624965,0.00014822,2]
[346325848,1734893432512,-250.0,0.00014896,2]
[346325849,1734893432522,-178.0,0.00014907,2]
[346325850,1734893432532,-1991.10907552,0.00014908,2]
[346325851,1734893432545,-705.7996043,0.00014908,2]
[346325852,1734893432557,-21203.09132018,0.00014908,2]
[346325853,1734893432567,-150.0,0.00014932,2]
[346325854,1734893432577,-1741.87,0.0001497,2]
[346325855,1734893432587,-500.0,0.00015,2]
[346325856,1734893432597,-250.0,0.00015067,2]
[346325857,1734893432609,-500.0,0.00015126,2]
[346325858,1734893432618,-1000.0,0.0001519,2]
[346325859,1734893432629,-200.0,0.00015206,2]
[346325860,1734893432638,-618.83,0.00015225,2]
[346325861,1734893432647,-8279.46,0.00015233,2]
[346325862,1734893432659,-691.87,0.00015251,2]
[346325863,1734893432668,-539.09,0.00015292,2]
[346325864,1734893432678,-207.81,0.00015293,2]
[346325866,1734893432687,-1182.38,0.00015296,2]
[346325868,1734893432696,-539.09,0.00015296,2]
[346325869,1734893432706,-539.09,0.000153,2]
[346325871,1734893432715,-539.09,0.00015304,2]
[346325873,1734893432724,-1252.42,0.00015308,2]
[346325875,1734893432733,-200.0,0.00015308,2]
[346325878,1734893432742,-539.09,0.00015308,2]
[346325880,1734893432752,-1300.19,0.00015309,2]
[346325883,1734893432761,-7145.16,0.00015309,2]
[346325886,1734893432770,-539.09,0.00015312,2]
[346325888,1734893432780,-539.09,0.00015317,2]
[346325890,1734893432789,-10883.06,0.0001532,2]
[346325892,1734893432798,-539.09,0.00015321,2]
[346325894,1734893432808,-250.0,0.00015324,2]
[346325895,1734893432817,-539.09,0.00015325,2]
[346325896,1734893432826,-589.5,0.00015326,2]
[346325897,1734893432835,-539.09,0.00015329,2]
[346325898,1734893432845,-166.26,0.0001533,2]
[346325900,1734893432854,-156.39,0.0001533,2]
[346325902,1734893432863,-539.09,0.00015333,2]
[346325904,1734893432872,-539.09,0.00015337,2]
[346325906,1734893432882,-539.09,0.00015341,2]
[346325908,1734893432891,-539.09,0.00015345,2]
[346325911,1734893432904,-539.09,0.00015349,2]
[346325913,1734893432913,-539.09,0.00015353,2]
[346325915,1734893432923,-539.09,0.00015357,2]
[346325917,1734893432932,-539.09,0.00015361,2]
[346325919,1734893432942,-539.09,0.00015365,2]
[346325920,1734893432951,-893.43,0.00015369,2]
[346325921,1734893432960,-539.09,0.00015369,2]
[346325922,1734893432969,-17692.96,0.00015369,2]
[346325923,1734893432979,-150.0,0.00015402,2]
[346325924,1734893432988,-1500.0,0.00015479,2]
[346325925,1734893432997,-984.6,0.00015607,2]
[346325926,1734893433007,-2000.0,0.00015646,2]
[346325927,1734893433016,-5962.38,0.00015692,2]
[346325928,1734893433025,-164.83,0.00015808,2]
[346325929,1734893433035,-246.14,0.0001671,2]
[346325930,1734893433045,-186.52,0.00016712,2]
[346325931,1734893433056,-412.52,0.00016813,2]
[346325932,1734893433066,-550.0,0.00017,2]
[346325933,1734893433076,-1000.0,0.00017089,2]
[346325934,1734893433086,-500.0,0.00017157,2]
[346325935,1734893433096,-1300.19,0.00017222,2]
[346325936,1734893433106,-9999.99,0.00017728,2]
[346325937,1734893433116,-1376.31,0.00017728,2]
[346325938,1734893433127,-1509.28,0.00017728,2]
[346325939,1734893433137,-9999.99,0.00017728,2]
[346325940,1734893433147,-16743.79,0.00017728,2]
[346325941,1734893433158,-150.99,0.00017728,2]
[346325942,1734893433168,-11793.81,0.00017728,2]
[346325943,1734893433178,-460.67,0.00017728,2]
[346325944,1734893433189,-984.6,0.00017871,2]
[346325945,1734893433199,-497.66,0.00018371,2]
[346325946,1734893433209,-17210.0,0.00018422,2]
[346325947,1734893433219,-507.09,0.00018677,2]
[346325948,1734893433229,-150.0,0.00018888,2]
[346325949,1734893433239,-150.0,0.00018888,2]
[346325950,1734893433249,-150.0,0.00018888,2]
[346325951,1734893433259,-1000.0,0.00018988,2]
[346325952,1734893433269,-331.879,0.00019,2]
[346325953,1734893433278,-600.0,0.00019,2]
[346325954,1734893433288,-300.0,0.00019014,2]
[346325955,1734893433297,-302.81959202,0.00019078,2]
[346325956,1734893433308,-4171.0304,0.00019078,2]
[346325957,1734893433318,-1300.19,0.00019136,2]
[346325958,1734893433330,-166.26,0.00019163,2]
[346325959,1734893433340,-302.81959201,0.00019169,2]
[346325960,1734893433349,-334.280245,0.00019178,2]
[346325961,1734893433359,-1460.051621,0.00019178,2]
[346325962,1734893433369,-500.0,0.00019178,2]
[346325963,1734893433379,-500.0,0.00019178,2]
[346325964,1734893433388,-500.0,0.00019178,2]
[346325965,1734893433398,-500.0,0.00019178,2]
[346325966,1734893433410,-500.0,0.00019178,2]
[346325967,1734893433419,-500.0,0.00019178,2]
[346325968,1734893433429,-500.0,0.00019178,2]
[346325969,1734893433439,-549.93,0.00019178,2]
[346325970,1734893433448,-466.63508302,0.00019178,2]
[346325971,1734893433458,-500.0,0.00019178,2]
[346325972,1734893433468,-500.0,0.00019178,2]
[346325973,1734893433477,-500.0,0.00019178,2]
[346325974,1734893433487,-500.0,0.00019178,2]
[346325975,1734893433497,-500.0,0.00019178,2]
[346325976,1734893433507,-500.0,0.00019178,2]
[346325977,1734893433516,-500.0,0.00019178,2]
[346325978,1734893433526,-500.0,0.00019178,2]
[346325979,1734893433538,-500.0,0.00019178,2]
[346325980,1734893433547,-500.0,0.00019178,2]
[346325981,1734893433561,-500.0,0.00019178,2]
[346325982,1734893433571,-500.0,0.00019178,2]
[346325983,1734893433581,-500.0,0.00019178,2]
[346325984,1734893433591,-500.0,0.00019178,2]
[346325985,1734893433600,-500.0,0.00019178,2]
[346325986,1734893433611,-500.0,0.00019178,2]
[346325987,1734893433621,-500.0,0.00019178,2]
[346325988,1734893433630,-500.0,0.00019178,2]
[346325989,1734893433640,-500.0,0.00019178,2]
[346325990,1734893433649,-500.0,0.00019178,2]
[346325991,1734893433659,-580.20888096,0.00019178,2]
[346325992,1734893433669,-500.0,0.00019178,2]
[346325993,1734893433679,-500.0,0.00019178,2]
[346325994,1734893433689,-500.0,0.00019178,2]
[346325995,1734893433699,-500.0,0.00019178,2]
[346325996,1734893433709,-518.21101978,0.00019178,2]
[346325997,1734893433718,-500.0,0.00019178,2]
[346325998,1734893433728,-500.0,0.00019178,2]
[346325999,1734893433737,-500.0,0.00019178,2]
[346326000,1734893433747,-500.0,0.00019178,2]
[346326001,1734893433756,-500.0,0.00019178,2]
[346326002,1734893433766,-500.0,0.00019178,2]
[346326003,1734893433775,-500.0,0.00019178,2]
[346326004,1734893433784,-3045.0,0.00019178,2]
[346326005,1734893433794,-500.0,0.00019178,2]
[346326006,1734893433804,-500.0,0.00019178,2]
[346326007,1734893433814,-500.0,0.00019178,2]
[346326008,1734893433824,-500.0,0.00019178,2]
[346326009,1734893433834,-515.84,0.00019178,2]
[346326010,1734893433843,-500.0,0.00019178,2]
[346326011,1734893433853,-500.0,0.00019178,2]
[346326012,1734893433862,-500.0,0.00019178,2]
[346326013,1734893433872,-500.0,0.00019178,2]
[346326014,1734893433881,-500.0,0.00019178,2]
[346326015,1734893433891,-541.26,0.00019178,2]
[346326016,1734893433900,-506.11,0.00019178,2]
[346326017,1734893433911,-500.0,0.00019178,2]
[346326018,1734893433920,-500.0,0.00019178,2]
[346326019,1734893433929,-500.0,0.00019178,2]
[346326020,1734893433938,-500.0,0.00019178,2]
[346326021,1734893433947,-500.0,0.00019178,2]
[346326022,1734893433957,-570.5,0.00019178,2]
[346326023,1734893433966,-579.28,0.00019178,2]
[346326024,1734893433976,-500.0,0.00019178,2]
[346326025,1734893433985,-500.0,0.00019178,2]
[346326026,1734893433995,-500.0,0.00019178,2]
[346326027,1734893434004,-500.0,0.00019178,2]
[346326028,1734893434013,-500.0,0.00019178,2]
[346326029,1734893434022,-500.0,0.00019178,2]
[346326030,1734893434032,-500.0,0.00019178,2]
[346326031,1734893434041,-183.22,0.00019178,2]
[346326032,1734893434050,-156.64,0.00019178,2]
[346326033,1734893434060,-500.0,0.00019178,2]
[346326034,1734893434069,-447.81181694,0.00019178,2]
[346326035,1734893434078,-500.0,0.00019178,2]
[346326036,1734893434088,-500.0,0.00019178,2]
[346326037,1734893434097,-240.16,0.00019178,2]
[346326038,1734893434106,-500.0,0.00019178,2]
[346326039,1734893434115,-589.5938794,0.00019178,2]
[346326040,1734893434125,-500.0,0.00019178,2]
[346326041,1734893434135,-171.77,0.00019178,2]
[346326042,1734893434145,-500.0,0.00019178,2]
[346326043,1734893434155,-500.0,0.00019178,2]
[346326044,1734893434164,-500.0,0.00019178,2]
[346326045,1734893434174,-500.0,0.00019178,2]
[346326046,1734893434184,-608.42,0.00019178,2]
[346326047,1734893434194,-500.0,0.00019178,2]
[346326048,1734893434203,-500.0,0.00019178,2]
[346326049,1734893434213,-500.0,0.00019178,2]
[346326050,1734893434222,-500.0,0.00019178,2]
[346326051,1734893434232,-500.0,0.00019178,2]
[346326052,1734893434241,-500.0,0.00019178,2]
[346326053,1734893434251,-500.0,0.00019178,2]
[346326054,1734893434261,-500.0,0.00019178,2]
[346326055,1734893434271,-535.06,0.00019178,2]
[346326056,1734893434280,-500.0,0.00019178,2]
[346326057,1734893434290,-500.0,0.00019178,2]
[346326058,1734893434301,-500.0,0.00019178,2]